bitfinex-derivatives/quotes_SOLF0:USTF0_20251107
["timestamp","ask_amount","ask_price","bid_price","bid_amount"]
[1762487474188,3.02,157.27,157.24,0.04190561]
[1762487474382,3.02,157.25,157.24,0.04190561]
[1762487474587,7.6237322,157.25,157.24,0.04190561]
[1762487475498,3.02,157.24,157.19,3.23]
[1762487475689,3.02,157.24,157.17,2.84658761]
[1762487475885,3.02,157.21,157.17,6.07658761]
[1762487476091,3.02,157.24,157.18,3.23]
[1762487476597,3.02,157.22,157.19,0.0473834]
[1762487477997,3.02,157.22,157.19,3.2773834]
[1762487481393,0.04260416,157.23,157.19,3.2773834]
[1762487481593,0.04260416,157.23,157.21,3.23]
[1762487481992,3.02,157.27,157.22,3.23]
[1762487482998,3.02,157.27,157.23,3.27348734]
[1762487482999,0.04728903,157.26,157.23,3.27348734]
[1762487484793,3.02,157.24,157.23,0.04348734]
[1762487484991,3.06728903,157.26,157.23,0.04348734]
[1762487486293,4.61262012,157.25,157.23,0.04348734]
[1762487486492,7.63227476,157.24,157.23,0.04348734]
[1762487487597,0.04728903,157.26,157.23,3.27348734]
[1762487487788,3.06728903,157.26,157.23,3.27348734]
[1762487488395,0.04728903,157.26,157.23,3.27348734]
[1762487488592,0.04728903,157.26,157.25,3.23]
[1762487488987,3.06728903,157.26,157.23,3.27348734]
[1762487489193,3.06728903,157.26,157.23,0.04348734]
[1762487490094,3.02,157.25,157.23,0.04348734]
[1762487490496,0.04728903,157.26,157.23,0.04348734]
[1762487490497,7.63434915,157.24,157.23,0.04348734]
[1762487491009,3.02,157.24,157.23,0.04348734]
[1762487491800,7.63505592,157.24,157.23,0.04348734]
[1762487491999,3.02,157.24,157.23,0.04348734]
[1762487494103,7.63465539,157.24,157.23,0.04348734]
[1762487494304,3.02,157.24,157.23,0.04348734]
[1762487495303,7.63711892,157.24,157.23,0.04348734]
[1762487497006,3.02,157.24,157.23,0.04348734]
[1762487498109,7.6395962,157.24,157.23,0.04348734]
[1762487501315,5.7275,157.23,157.18,3.23]
[1762487501520,3.24,157.21,157.18,3.23]
[1762487501823,3.24,157.21,157.15,3.15]
[1762487502019,3.24,157.19,157.15,4.97319836]
[1762487502415,3.2822558,157.19,157.15,5.01388309]
[1762487502615,3.2822558,157.19,157.16,3.15]
[1762487503423,3.24,157.18,157.15,5.01388309]
[1762487504024,3.2822558,157.19,157.16,3.15]
[1762487507125,3.2822558,157.19,157.15,5.01388309]
[1762487507319,3.2822558,157.19,157.16,3.15]
[1762487509122,9.0111558,157.19,157.16,3.15]
[1762487510230,0.0422558,157.19,157.16,3.15]
[1762487510628,3.2822558,157.19,157.16,3.15]
[1762487510826,0.0422558,157.19,157.16,3.15]
[1762487511022,0.0422558,157.19,157.18,3.15]
[1762487511629,0.0422558,157.19,157.18,4.43]
[1762487512733,8.967,157.24,157.19,3.15]
[1762487512929,7.87137368,157.23,157.21,1.82319836]
[1762487513126,3.24,157.23,157.21,1.82319836]
[1762487513635,8.967,157.24,157.21,4.97319836]
[1762487513833,4.63121948,157.23,157.21,5.01883928]
[1762487514036,9.01448136,157.24,157.21,5.01883928]
[1762487514233,4.6312163,157.23,157.21,5.01883928]
[1762487514433,4.6312163,157.22,157.21,5.01883928]
[1762487514634,0.04748136,157.24,157.23,3.15]
[1762487514832,4.67997067,157.24,157.23,4.97319836]
[1762487516332,4.67997067,157.24,157.23,3.15]
[1762487517134,3.24,157.23,157.21,0.04564092]
[1762487517431,7.87420981,157.22,157.21,0.04564092]
[1762487518235,3.24,157.21,157.17,1.82319836]
[1762487518436,3.24,157.19,157.17,1.82319836]
[1762487518840,5.728,157.21,157.17,4.97319836]
[1762487519137,7.87557635,157.2,157.17,4.97319836]
[1762487519338,4.63557635,157.19,157.17,5.01930625]
[1762487519540,3.28827825,157.2,157.17,5.01930625]
[1762487519834,4.63579448,157.19,157.17,5.01930625]
[1762487520137,3.28827825,157.2,157.17,3.19610789]
[1762487520338,4.63580208,157.19,157.17,3.19610789]
[1762487520534,3.28827825,157.2,157.17,3.19610789]
[1762487520834,7.87564241,157.19,157.17,0.04610789]
[1762487521035,3.28827825,157.2,157.17,3.19610789]
[1762487521234,7.8779178,157.19,157.17,0.04610789]
[1762487521537,3.28827825,157.2,157.17,3.19610789]
[1762487521740,4.63807843,157.19,157.17,3.19610789]
[1762487521929,3.28827825,157.2,157.17,3.19610789]
[1762487522135,4.63893441,157.19,157.17,3.19610789]
[1762487522434,3.28827825,157.2,157.17,3.19610789]
[1762487522635,4.63899608,157.19,157.17,3.19610789]
[1762487522836,3.28827825,157.2,157.17,3.19610789]
[1762487523035,4.63899521,157.19,157.17,3.19610789]
[1762487523236,3.28827825,157.2,157.17,3.19610789]
[1762487523536,4.63905078,157.19,157.17,3.19610789]
[1762487523731,0.04827825,157.2,157.19,3.15]
[1762487524436,7.92825917,157.2,157.17,0.04610789]
[1762487524642,7.87998092,157.19,157.17,0.04610789]
[1762487524843,3.24,157.19,157.17,0.04610789]
[1762487525744,7.878813,157.18,157.17,0.04610789]
[1762487528545,7.878813,157.18,157.1,5.7319]
[1762487528546,3.24,157.15,157.11,4.97319836]
[1762487528748,7.8747458,157.14,157.11,4.97319836]
[1762487529043,3.24,157.14,157.11,4.97319836]
[1762487529241,3.24,157.14,157.04,62.0]
[1762487529246,3.24,157.14,157.09,3.15]
[1762487529441,3.24,157.12,157.1,0.04031764]
[1762487531250,3.2,157.11,157.1,0.04031764]
[1762487532545,3.24751658,157.13,157.1,0.04031764]
[1762487532948,3.2,157.11,157.1,0.04031764]
[1762487534146,0.04751658,157.13,157.1,0.04031764]
[1762487534339,7.93049705,157.12,157.1,0.04031764]
[1762487534545,3.2,157.12,157.1,0.04031764]
[1762487538050,8.9315,157.12,157.1,0.04031764]
[1762487538252,3.2,157.11,157.1,0.04031764]
[1762487538752,3.24751658,157.13,157.1,3.22031764]
[1762487539150,3.24751658,157.13,157.1,0.04031764]
[1762487539345,8.97861658,157.13,157.1,0.04031764]
[1762487539547,3.2,157.12,157.1,0.04031764]
[1762487540543,3.2,157.12,157.1,3.22031764]
[1762487541555,3.2,157.12,157.1,0.04031764]
[1762487543552,0.04751658,157.13,157.1,3.22031764]
[1762487543745,0.04751658,157.13,157.11,5.00319836]
[1762487544248,0.04751658,157.13,157.1,0.04031764]
[1762487544249,3.24751658,157.13,157.1,0.04031764]
[1762487546453,8.97861658,157.13,157.1,0.04031764]
[1762487546750,3.24751658,157.13,157.1,0.04031764]
[1762487546955,3.2,157.11,157.1,0.04031764]
[1762487547449,3.2,157.11,157.06,61.6]
[1762487547450,7.92558464,157.11,157.06,61.6]
[1762487547656,3.2,157.09,157.06,61.6]
[1762487548447,3.2,157.08,157.06,61.6]
[1762487548643,3.2,157.08,157.06,61.64073238]
[1762487549450,0.04704201,157.09,157.07,3.18]
[1762487550950,0.04704201,157.09,157.07,8.9129]
[1762487551151,0.04704201,157.09,157.08,3.18]
[1762487552857,7.92408762,157.14,157.09,3.18]
[1762487553060,3.2,157.13,157.09,6.03423406]
[1762487553261,3.2,157.13,157.1,3.18]
[1762487553953,3.24546716,157.13,157.1,3.22316136]
[1762487554449,0.04546716,157.13,157.1,3.22316136]
[1762487555253,3.24546716,157.13,157.1,3.22316136]
[1762487558360,0.04546716,157.13,157.1,3.22316136]
[1762487560467,3.16546716,157.13,157.1,3.22316136]
[1762487561463,0.04546716,157.13,157.1,3.22316136]
[1762487561764,0.04546716,157.13,157.12,6.04423406]
[1762487562666,3.12,157.19,157.12,6.04423406]
[1762487562865,3.12,157.17,157.13,3.19]
[1762487563166,4.73052702,157.16,157.13,3.19]
[1762487563464,3.12,157.17,157.13,3.19]
[1762487563465,3.12,157.17,157.13,8.9206]
[1762487563679,0.04830372,157.17,157.15,6.04423406]
[1762487563885,3.16830372,157.17,157.15,2.85423406]
[1762487564071,3.16830372,157.17,157.15,6.04423406]
[1762487565381,0.04830372,157.17,157.15,6.04423406]
[1762487565785,0.04830372,157.17,157.16,3.19]
[1762487566588,4.83470011,157.17,157.16,3.19]
[1762487568489,3.12,157.16,157.13,3.23543878]
[1762487569484,3.16830372,157.17,157.13,3.23543878]
[1762487569684,4.79146732,157.16,157.13,3.23543878]
[1762487569886,3.16830372,157.17,157.13,3.23543878]
[1762487570188,4.79148876,157.16,157.13,3.23543878]
[1762487570388,3.16830372,157.17,157.13,3.23543878]
[1762487570589,4.79264805,157.16,157.13,3.23543878]
[1762487570782,3.16830372,157.17,157.13,3.23543878]
[1762487570982,4.7923466,157.16,157.13,3.23543878]
[1762487571184,4.79236541,157.15,157.13,3.23543878]
[1762487571383,3.12,157.16,157.13,3.23543878]
[1762487571580,7.91080572,157.15,157.13,0.04543878]
[1762487571786,7.91080572,157.14,157.13,0.04543878]
[1762487575294,4.79080572,157.14,157.13,0.04543878]
[1762487576289,7.91080572,157.14,157.13,0.04543878]
[1762487580797,7.91080572,157.14,157.07,2.85423406]
[1762487580798,3.12,157.12,157.07,2.85423406]
[1762487580987,7.91080572,157.11,157.08,3.19]
[1762487581299,7.91080572,157.1,157.08,3.19]
[1762487581499,4.79080572,157.09,157.08,3.19]
[1762487581899,4.79080572,157.09,157.07,2.89935888]
[1762487582096,3.16476872,157.1,157.07,6.08935888]
[1762487582398,4.78459519,157.09,157.07,6.08935888]
[1762487582599,3.16476872,157.1,157.07,6.08935888]
[1762487582799,4.78457945,157.09,157.07,6.08935888]
[1762487583001,3.16476872,157.1,157.07,6.08935888]
[1762487583203,4.7842609,157.09,157.07,6.08935888]
[1762487583403,3.16476872,157.1,157.07,6.08935888]
[1762487583594,4.78456516,157.09,157.07,6.08935888]
[1762487583794,3.16476872,157.1,157.07,6.08935888]
[1762487584095,7.90516416,157.09,157.07,2.89935888]
[1762487584298,7.90516416,157.08,157.07,2.89935888]
[1762487585395,7.90516416,157.08,157.07,0.04512482]
[1762487585591,4.78516416,157.08,157.07,0.04512482]
[1762487586301,7.90516416,157.08,157.07,0.04512482]
[1762487592511,13.63786416,157.08,157.07,0.04512482]
[1762487593696,7.90516416,157.08,157.07,0.04512482]
[1762487593902,3.05476872,157.1,157.07,3.20512482]
[1762487594203,3.01,157.08,157.07,0.04512482]
[1762487594406,7.71869231,157.08,157.07,0.04512482]
[1762487594998,3.01,157.07,157.0,6.01423406]
[1762487595212,3.01,157.05,157.0,62.13423406]
[1762487595405,3.01,157.03,157.0,62.13423406]
[1762487595610,3.01,157.03,157.0,59.28]
[1762487596010,3.05316408,157.03,157.0,0.04278557]
[1762487596712,3.05316408,157.03,157.0,3.20278557]
[1762487597421,3.05316408,157.03,157.0,0.04278557]
[1762487598805,0.04316408,157.03,157.01,3.16]
[1762487599304,0.04316408,157.03,157.02,3.16]
[1762487599816,0.04316408,157.03,157.02,66.58]
[1762487601017,3.01,157.08,157.03,3.16]
[1762487601209,3.01,157.08,157.04,2.85423406]
[1762487601806,3.05377681,157.08,157.04,2.89504188]
[1762487602813,3.05377681,157.08,157.04,6.05504188]
[1762487603216,0.04377681,157.08,157.07,6.01423406]
[1762487603712,3.01,157.12,157.08,3.16]
[1762487604710,3.05655212,157.12,157.08,3.20305251]
[1762487605009,3.01,157.11,157.08,0.04305251]
[1762487605516,3.01,157.09,157.02,2.85423406]
[1762487605808,3.01,157.07,156.99,69.43423406]
[1762487606005,3.01,157.03,156.99,2.85423406]
[1762487606722,3.05746455,157.03,156.99,2.89903381]
[1762487608118,3.05746455,157.03,156.99,6.05903381]
[1762487608815,3.05746455,157.03,157.0,3.16]
[1762487609218,3.05746455,157.03,156.99,6.05903381]
[1762487610311,3.05746455,157.03,157.0,1.82786173]
[1762487613421,3.05746455,157.03,157.0,4.98786173]
[1762487614119,3.05746455,157.03,157.0,1.82786173]
[1762487615319,0.04746455,157.03,157.01,3.16]
[1762487616014,3.05746455,157.03,157.0,4.98786173]
[1762487618922,0.04746455,157.03,157.02,4.82786173]
[1762487619822,0.04746455,157.03,157.02,1.82786173]
[1762487620024,3.15746455,157.03,157.02,1.82786173]
[1762487620717,0.04746455,157.03,157.02,1.82786173]
[1762487622127,0.04746455,157.03,157.02,4.89786173]
[1762487626823,0.04746455,157.03,157.02,1.82786173]
[1762487627224,0.04746455,157.03,157.02,4.89786173]
[1762487631438,0.04746455,157.03,157.02,1.82786173]
[1762487631638,0.04746455,157.03,157.02,4.89786173]
[1762487632338,7.799109,157.03,157.02,1.82786173]
[1762487632931,7.799109,157.03,156.99,3.11479975]
[1762487633137,3.03,157.02,157.0,1.82786173]
[1762487634143,0.04746455,157.03,157.01,3.07]
[1762487634338,3.07746455,157.03,157.01,3.07]
[1762487636329,3.07746455,157.03,157.0,1.82786173]
[1762487636740,3.07746455,157.03,157.0,4.89786173]
[1762487638245,7.75702771,157.02,157.0,1.82786173]
[1762487638443,3.03,157.02,157.0,1.82786173]
[1762487641235,5.78226455,157.03,157.01,3.07]
[1762487641236,0.04746455,157.03,157.01,3.07]
[1762487641442,0.04746455,157.03,157.02,4.89786173]
[1762487641643,4.77612935,157.03,157.02,4.89786173]
[1762487644542,0.04746455,157.03,157.02,4.89786173]
[1762487645043,4.7778258,157.03,157.02,4.89786173]
[1762487645246,0.04746455,157.03,157.02,4.89786173]
[1762487647545,4.77774773,157.03,157.02,4.89786173]
[1762487647752,4.77774773,157.03,157.02,1.82786173]
[1762487647950,4.77774773,157.03,157.01,1.82786173]
[1762487648149,0.04746455,157.03,157.01,4.89786173]
[1762487648350,0.04746455,157.03,157.02,3.07]
[1762487648650,4.7788658,157.03,157.02,3.07]
[1762487649352,7.8088658,157.03,157.01,4.89786173]
[1762487649646,4.73140125,157.02,157.01,4.89786173]
[1762487649852,7.76140125,157.02,157.01,1.82786173]
[1762487650055,3.03,157.01,156.99,1.87266148]
[1762487650243,4.7336324,157.0,156.99,1.87266148]
[1762487651141,7.6636324,157.0,156.99,1.87266148]
[1762487651351,4.7336324,157.0,156.99,5.11266148]
[1762487651947,4.7336324,157.0,156.99,1.87266148]
[1762487652351,4.7336324,157.0,156.99,5.11266148]
[1762487652749,7.6636324,157.0,156.99,1.87266148]
[1762487653448,4.7336324,157.0,156.99,1.87266148]
[1762487655748,7.6636324,157.0,156.99,0.04479975]
[1762487655952,2.93,156.99,156.92,1.82786173]
[1762487656147,2.93,156.97,156.92,1.82786173]
[1762487656454,2.93,156.95,156.92,5.06786173]
[1762487656852,2.93,156.99,156.94,1.82786173]
[1762487657053,7.0157,157.0,156.93,3.24]
[1762487657054,4.74840772,156.98,156.97,3.24]
[1762487657552,2.93,156.97,156.95,3.28024407]
[1762487657859,2.93,156.97,156.95,1.8681058]
[1762487658149,0.04390008,156.98,156.96,3.24]
[1762487658351,4.69788013,156.97,156.96,3.24]
[1762487658556,7.62788013,156.97,156.95,1.8681058]
[1762487658754,2.93,156.97,156.95,1.8681058]
[1762487659158,2.93,156.97,156.95,5.1081058]
[1762487659359,0.04390008,156.98,156.95,5.1081058]
[1762487659555,0.04390008,156.98,156.96,3.24]
[1762487661261,2.97390008,156.98,156.95,0.04024407]
[1762487661663,2.97390008,156.98,156.95,5.1081058]
[1762487662764,2.97390008,156.98,156.95,1.8681058]
[1762487663364,2.97390008,156.98,156.95,5.1081058]
[1762487665455,2.97390008,156.98,156.95,1.8681058]
[1762487665659,2.97390008,156.98,156.96,3.24]
[1762487665660,0.04390008,156.98,156.96,3.24]
[1762487666265,2.97390008,156.98,156.95,1.8681058]
[1762487666472,2.97390008,156.98,156.95,5.1081058]
[1762487666968,2.97390008,156.98,156.95,0.04024407]
[1762487667171,2.93,156.96,156.95,0.04024407]
[1762487669158,4.68845799,156.96,156.91,1.82786173]
[1762487669369,2.93,156.94,156.91,1.82786173]
[1762487670169,2.93,156.94,156.92,3.24]
[1762487670465,0.04515628,156.94,156.92,3.24]
[1762487671257,2.97515628,156.94,156.89,8.9794]
[1762487671462,2.85863486,157.03,156.81,28.15271065]
[1762487671463,2.93,156.92,156.88,3.24]
[1762487671766,2.97388535,156.92,156.88,3.24]
[1762487672471,8.71258535,156.92,156.88,3.24]
[1762487672671,2.93,156.91,156.88,3.24]
[1762487674465,2.93,156.91,156.87,3.24]
[1762487680471,3.25,156.9,156.87,3.24]
[1762487681280,3.25,156.9,156.84,8.9114]
[1762487681480,3.29619211,156.89,156.85,3.17]
[1762487690480,3.25,156.88,156.85,3.17]
[1762487690989,3.25,156.88,156.82,8.912]
[1762487691198,3.25,156.88,156.81,63.46]
[1762487691480,3.25,156.82,156.75,3.17]
[1762487691883,0.04832243,156.8,156.77,3.17]
[1762487692183,0.04832243,156.8,156.79,6.02863486]
[1762487692385,3.25,156.88,156.8,3.17]
[1762487692583,3.25,156.88,156.84,3.17]
[1762487693286,3.29238399,156.88,156.84,3.21884644]
[1762487693481,8.11313387,156.87,156.84,3.21884644]
[1762487693679,3.25,156.87,156.84,3.21884644]
[1762487695586,0.04238399,156.88,156.84,3.21884644]
[1762487696490,3.29238399,156.88,156.85,3.17]
[1762487698885,3.29238399,156.88,156.84,0.04884644]
[1762487699288,3.25,156.86,156.84,0.04884644]
[1762487699988,5.7406,156.87,156.84,0.04884644]
[1762487699989,8.13163988,156.85,156.84,0.04884644]
[1762487700191,3.25,156.85,156.84,0.04884644]
[1762487701594,3.25,156.87,156.84,3.21884644]
[1762487701789,0.04238399,156.88,156.84,3.21884644]
[1762487702090,0.04238399,156.88,156.87,3.17]
[1762487702796,0.04238399,156.88,156.86,6.02863486]
[1762487703095,3.25,156.86,156.84,0.04884644]
[1762487705994,5.78248399,156.88,156.84,0.04884644]
[1762487705995,8.10986175,156.85,156.84,0.04884644]
[1762487706302,3.25,156.84,156.79,63.7]
[1762487706597,3.25,156.82,156.79,63.7]
[1762487706797,3.25,156.82,156.75,8.60333486]
[1762487706992,8.11042697,156.81,156.76,3.17]
[1762487707294,3.29152249,156.8,156.76,3.17]
[1762487708500,3.29152249,156.8,156.76,8.9143]
[1762487708996,0.04152249,156.8,156.78,3.17]
[1762487709593,3.29152249,156.8,156.76,8.9143]
[1762487709793,0.04152249,156.8,156.77,3.17]
[1762487710098,3.29152249,156.8,156.77,3.17]
[1762487710800,4.86040088,156.84,156.79,3.21]
[1762487710995,3.05,156.9,156.81,3.21]
[1762487711301,3.05,156.88,156.81,3.21]
[1762487711497,4.86030761,156.87,156.81,3.21]
[1762487711696,3.05,156.88,156.81,3.21]
[1762487711893,0.04028035,156.86,156.83,0.04390634]
[1762487712096,0.04028035,156.86,156.84,5.7413]
[1762487713292,3.09028035,156.86,156.83,3.25390634]
[1762487714703,0.04028035,156.86,156.84,3.21]
[1762487716004,0.04028035,156.86,156.84,8.9513]
[1762487716193,0.04028035,156.86,156.85,3.21]
[1762487726012,3.05,156.91,156.87,3.21]
[1762487726216,7.96332487,156.9,156.88,63.56]
[1762487726523,4.91332487,156.89,156.88,63.56]
[1762487727425,3.05,156.88,156.87,0.04514032]
[1762487727620,7.96332487,156.88,156.87,0.04514032]
[1762487728026,7.96332487,156.88,156.83,63.58]
[1762487728027,3.05,156.87,156.83,63.58]
[1762487728218,7.96332487,156.86,156.83,63.58]
[1762487728417,4.91332487,156.85,156.83,63.58]
[1762487728620,3.05,156.86,156.83,63.58]
[1762487728918,4.89008626,156.85,156.84,3.21]
[1762487729222,0.04714589,156.86,156.84,6.06863486]
[1762487729429,0.0442906,156.87,156.85,3.21]
[1762487729626,4.89023025,156.86,156.85,3.21]
[1762487730529,4.89023025,156.86,156.85,63.6]
[1762487732431,3.0942906,156.87,156.85,65.4313863]
[1762487732628,4.89140867,156.86,156.85,65.4313863]
[1762487733428,3.0942906,156.87,156.85,65.4313863]
[1762487733626,0.0442906,156.87,156.86,3.21]
[1762487734536,3.05,156.93,156.86,3.21]
[1762487734722,7.94234266,156.92,156.9,1.8313863]
[1762487734926,4.89234266,156.91,156.9,65.4713863]
[1762487735735,7.94234266,156.91,156.9,63.64]
[1762487737935,4.89234266,156.91,156.9,66.62]
[1762487738236,4.89234266,156.91,156.9,68.4513863]
[1762487739337,0.04471509,156.92,156.91,2.98]
[1762487739538,4.93489357,156.92,156.91,2.98]
[1762487739737,0.04471509,156.92,156.91,2.98]
[1762487739933,0.04471509,156.92,156.91,66.56]
[1762487740233,3.13,156.98,156.93,5.7382]
[1762487740429,8.01786253,156.97,156.94,1.8313863]
[1762487740628,4.88786253,156.96,156.94,4.8713863]
[1762487740829,4.88786253,156.95,156.94,4.8713863]
[1762487741042,4.88786253,156.95,156.94,67.0313863]
[1762487741229,3.13,156.97,156.94,4.8713863]
[1762487741540,4.93323454,156.96,156.94,66.62]
[1762487741740,0.04810511,156.96,156.94,66.62]
[1762487742635,0.04810511,156.96,156.95,1.8313863]
[1762487742842,2.98,156.95,156.93,0.04228989]
[1762487743046,7.86305595,156.94,156.93,0.04228989]
[1762487743735,2.98,156.93,156.9,65.3913863]
[1762487743936,7.86305595,156.92,156.9,65.3913863]
[1762487744136,2.98,156.92,156.9,65.3913863]
[1762487744544,2.98,156.92,156.9,1.8313863]
[1762487748440,4.84291882,156.91,156.9,1.8313863]
[1762487748841,2.98,156.9,156.89,0.04269091]
[1762487749045,7.82291882,156.9,156.89,0.04269091]
[1762487749839,4.84291882,156.9,156.89,0.04269091]
[1762487750041,7.82291882,156.9,156.89,0.04269091]
[1762487753238,4.84291882,156.9,156.89,0.04269091]
[1762487753647,7.82291882,156.9,156.89,0.04269091]
[1762487753844,7.82291882,156.9,156.89,1.87407721]
[1762487758744,7.82291882,156.9,156.89,0.04269091]
[1762487758947,2.98,156.88,156.87,1.8313863]
[1762487759154,7.82291882,156.88,156.87,1.8313863]
[1762487759950,2.98,156.87,156.86,0.04273413]
[1762487760153,7.82291882,156.87,156.86,1.87412043]
[1762487760950,4.84291882,156.87,156.86,1.87412043]
[1762487761154,4.84291882,156.87,156.86,4.91412043]
[1762487761556,4.84291882,156.87,156.86,1.87412043]
[1762487761858,0.04066154,156.89,156.87,3.04]
[1762487762053,0.04066154,156.89,156.88,1.8313863]
[1762487763458,3.02066154,156.89,156.88,1.8313863]
[1762487763653,3.02066154,156.89,156.86,0.04273413]
[1762487763956,3.02066154,156.89,156.88,1.8313863]
[1762487765459,0.04066154,156.89,156.88,1.8313863]
[1762487766055,0.04066154,156.89,156.88,4.8713863]
[1762487769057,0.04066154,156.89,156.88,1.8313863]
[1762487769964,2.98,156.96,156.89,3.04]
[1762487770165,2.98,156.96,156.95,1.8313863]
[1762487770365,2.98,156.96,156.94,1.8313863]
[1762487770861,3.0,156.95,156.94,1.8313863]
[1762487773462,8.7377,156.95,156.93,0.0464855]
[1762487773658,3.0,156.94,156.93,1.8778718]
[1762487773859,7.78022903,156.94,156.93,1.8778718]
[1762487775763,4.78022903,156.94,156.93,1.8778718]
[1762487776966,4.78022903,156.94,156.93,4.8178718]
[1762487777871,3.0,156.96,156.93,4.8178718]
[1762487778069,0.04825812,156.97,156.95,4.7713863]
[1762487778263,4.52312377,156.96,156.95,4.7713863]
[1762487778463,0.04825812,156.97,156.95,4.7713863]
[1762487779663,3.0,157.02,156.96,2.94]
[1762487779866,4.52027705,157.01,157.0,1.8313863]
[1762487780662,7.52027705,157.01,157.0,1.8313863]
[1762487780868,3.0,157.0,156.99,0.04754546]
[1762487781067,7.52027705,157.0,156.99,0.04754546]
[1762487781772,3.0,157.0,156.99,0.04754546]
[1762487782675,7.5120624,157.0,156.99,0.04754546]
[1762487783075,3.0,157.0,156.99,0.04754546]
[1762487785872,0.04588532,157.02,156.99,2.98754546]
[1762487786076,0.04588532,157.02,157.01,2.94]
[1762487788182,0.04588532,157.02,157.01,4.7713863]
[1762487791181,3.0,157.06,157.02,2.94]
[1762487791381,3.0,157.06,157.03,4.7713863]
[1762487792273,3.04354008,157.06,157.03,4.81851676]
[1762487792475,3.04354008,157.06,157.03,0.04713046]
[1762487793784,3.0,157.04,157.03,0.04713046]
[1762487794081,8.7348,157.03,156.97,2.94]
[1762487794381,3.0,157.02,156.97,2.94]
[1762487795085,4.49918169,157.05,156.99,2.94]
[1762487795086,0.04279901,157.01,156.99,2.94]
[1762487796588,8.7333,157.07,157.0,2.94]
[1762487797085,3.0,157.05,157.0,2.94]
[1762487797485,3.04539081,157.04,157.01,0.0470942]
[1762487799280,0.04539081,157.04,157.01,3.0870942]
[1762487800990,2.97539081,157.04,157.01,3.0870942]
[1762487803894,2.97539081,157.04,157.01,0.0470942]
[1762487804482,2.93,157.02,157.01,0.0470942]
[1762487805395,8.6656,157.01,156.95,2.97]
[1762487806396,2.93,156.99,156.96,0.04422499]
[1762487806584,2.93,156.99,156.96,3.01422499]
[1762487808290,2.93,156.99,156.96,0.04422499]
[1762487808788,0.04409967,157.0,156.96,0.04422499]
[1762487808789,2.93,156.97,156.96,0.04422499]
[1762487808989,2.93,156.97,156.9,8.59404988]
[1762487809193,2.93,156.97,156.91,2.97]
[1762487809591,2.93,156.97,156.92,2.97]
[1762487810195,2.9780884,156.96,156.93,3.01561665]
[1762487810398,2.97766873,156.96,156.93,3.01111813]
[1762487810693,2.97766873,156.96,156.93,0.04111813]
[1762487812589,8.71496873,156.96,156.93,0.04111813]
[1762487812789,2.93,156.95,156.93,0.04111813]
[1762487813496,2.85494988,157.01,157.0,23.72893127]
[1762487813696,7.44488583,157.01,156.91,2.97]
[1762487813899,4.58993595,157.0,156.91,2.97]
[1762487814098,4.58993595,156.99,156.91,2.97]
[1762487814298,4.58993595,156.98,156.91,2.97]
[1762487814602,0.0413697,156.96,156.94,2.97]
[1762487819001,0.0413697,156.96,156.93,3.01085557]
[1762487821407,0.0413697,156.96,156.93,0.04085557]
[1762487822108,4.59272255,156.95,156.93,0.04085557]
[1762487822303,4.59296653,156.94,156.93,0.04085557]
[1762487829527,4.58033697,156.94,156.93,0.04085557]
[1762487830623,5.7377,156.95,156.93,0.04085557]
[1762487831624,4.57780878,156.94,156.93,0.04085557]
[1762487833734,4.57575753,156.94,156.93,0.04085557]
[1762487834622,4.57575753,156.94,156.84,3.0]
[1762487834832,4.57575753,156.93,156.84,3.0]
[1762487835030,4.57575753,156.92,156.84,3.0]
[1762487835228,4.57575753,156.91,156.84,3.0]
[1762487835425,4.57575753,156.9,156.84,3.0]
[1762487835625,2.85494988,156.95,156.84,3.0]
[1762487835821,2.85494988,156.95,156.85,0.04013514]
[1762487835822,5.7406,156.87,156.85,0.04013514]
[1762487836026,0.0437002,156.89,156.84,0.0468308]
[1762487836233,5.7409,156.86,156.84,0.0468308]
[1762487837936,4.6425357,156.87,156.84,3.0468308]
[1762487838130,4.64065597,156.87,156.84,3.0468308]
[1762487838328,4.63849902,156.87,156.84,3.0468308]
[1762487838936,10.37909902,156.87,156.84,3.0468308]
[1762487839329,5.7406,156.87,156.84,3.0468308]
[1762487839728,0.04430157,156.88,156.84,3.0468308]